Workbook

Sheet Accueil
D2: Indicateur d'Ambiance Thermique
D4: Outil d’évaluation des ambiances thermiques
B7: Présentation de l'outil
B8: Cet outil a pour but d'estimer, selon différentes ambiances thermiques, quels seraient la contrainte ou l'inconfort occasionnés pour un salarié.
B14: Merci de cliquer sur l'indice choisi
B16: Cet outil permet d'évaluer :
B17: - La contrainte lors d'exposition au froid à l'aide de l'isolement vestimentaire requis IREQ selon la norme EN ISO 11079:2007 et de l'indice éolien
B18: - Le confort thermique global à l'aide de l'indice PMV-PPD et l'inconfort thermique local selon la norme NF EN ISO 7730:2005
B19: - La containte due à la chaleur à l'aide de l'astreinte thermique prévisible ATP (ou PHS en anglais) selon la norme NF EN ISO 7933:2023
B21: La bonne utilisation de cet outil est donc conditionnée à la connaissance de ces normes et leurs limites d'emploi. Il est conseillé de lire la notice d'utilisation, qui, outre l'explication du fonctionnement de l'outil, précise les plages d'utilisation de chaque indice.
B22: Quelques valeurs repères, notamment en ce qui concerne les grandeurs à estimer, sont fournies à l'utilisateur dans les onglets "Isolement vestimentaire" et "Métabolisme".
B24: version 1.0 (Novembre 2024)

Sheet Notice d'utilisation
D2: Indicateur d'Ambiance Thermique
D4: Outil d’évaluation des ambiances thermiques
B7: Description de l'outil et points de vigilance
B8: Cet outil est basé sur un tableur Excel combiné à différentes macros permettant de calculer les différents indicateurs. Plusieurs onglets permettent d'évaluer les indicateurs d'ambiance thermique selon la situation rencontrée (contrainte chaude, contrainte froide, inconfort thermique). Pour chaque module, différentes données devront être renseignées (température sèche d'air, hygrométrie, etc.). Il est nécessaire d'employer les unités définies. Il est rappelé qu'il s'agit d'un outil réservé à des spécialistes ayant des notions relatives à la thermique ainsi qu'à la métrologie associée.
B9: L'outil est protégé pour éviter toute modification.
C11: Les différentes cases de saisie blanches ne sont pas protégées et doivent être correctement renseignées par l'utilisateur pour que l'outil procède aux calculs.
C13: Les cases de résultats (vertes ou mises en forme conditionnelle) ne sont pas protégées afin de laisser les macros écrire les valeurs issues des calculs.
C15: Les différentes cases grisées sont protégées, elle résultent des différents résultats de calcul. Elles offrent à l'utilisateur des informations complémentaires.
B17: Les unités à utiliser sont indiquées pour chaque paramètre. Les données à utiliser devront au préalable être converties dans les unités utilisées par l'outil afin de garantir l'exactitude des résultats.
B18: Des commentaires sont présents pour certains éléments le nécessitant.
D20: Des boutons permettent des actions à l'utilisateur, comme lancer les calculs après avoir entré les valeurs à renseigner ou effacer les graphiques avant un nouveau calcul.
B23: Préalable à l'utilisation de l'outil
B24: Ci-après les plages de validité et spécificités de chaque indice présenté dans l'outil :
B25: Plages de validité du modèle d'astreinte thermique prévisible ATP (ou PHS) de la norme NF EN ISO 7933:2023
B27: Plages de validité du modèle d'astreinte thermique ATP
B28: Paramètres | G28: Unité | H28: Minimum | I28: Maximum
B29: Température de l'air (Ta) | G29: °C | H29: 15 | I29: 50
B30: Pression partielle de vapeur d'eau (Pa) | G30: kPa | H30: 0,5 | I30: 4,5
B31: Différence entre la température de rayonnement et d'air (Tr-Ta) | G31: °C | H31: 0 | I31: 60
B32: Vitesse d'air (va) | G32: m.s-1 | H32: 0 | I32: 3
B33: Métabolisme (M) | G33: W.m-2 | H33: 56 | I33: 250
B34: Isolement vestimentaire (Icl) | G34: clo | H34: 0,1 | I34: 1,0
B36: Dans sa forme actuelle, cette méthode d’évaluation ne peut pas être utilisée dans le cas du port de vêtements spéciaux de protection (vêtement réfléchissant, réfrigéré et ventilé, imperméable, avec équipement de protection individuelle).
B37: Elle n'est pas prévue pour être utilisée dans le cas de situations d'expositions courtes et intenses ni dans le cas de phases variables de courte durée.
B39: Plages de validité du modèle de confort thermique PMV-PPD de la norme NF EN ISO 7730:2005
B41: Plages de validité du modèle de confort thermique PMV
B42: Paramètres | G42: Unité | H42: Minimum | I42: Maximum
B43: Température de l'air (Ta) | G43: °C | H43: 10 | I43: 30
B44: Pression partielle de vapeur d'eau (Pa) | G44: kPa | H44: 0 | I44: 2,7
B45: Température de rayonnement (Tr) | G45: °C | H45: 10 | I45: 40
B46: Vitesse d'air (va) | G46: m.s-1 | H46: 0 | I46: 1
B47: Métabolisme (M) | G47: W.m-2 | H47: 46 | I47: 232
B48: Isolement vestimentaire (Icl) | G48: clo | H48: 0 | I48: 2
B50: Cette méthode d'évaluation est applicable aux hommes et aux femmes en bonne santé, exposés à des ambiances intérieures où le confort thermique est recherché, mais où des écarts modérés de ce confort thermique peuvent se produire. Cette méthode peut servir à concevoir de nouvelles ambiances ou à évaluer les ambiances existantes.
B52: Plages de validité des modèles d'inconfort thermique local de la norme NF EN ISO 7730:2005
B54: Inconfort du aux courants d'air (Draught rate)
B55: Paramètres | G55: Unité | H55: Minimum | I55: Maximum
B56: Température locale de l'air (Ta,l) | G56: °C | H56: 20 | I56: 26
B57: Vitesse locale de l'air (va,l) | G57: m.s-1 | H57: --- | I57: 0,5
B58: Intensité locale de turbulence | G58: % | H58: 10 | I58: 60
B60: Inconfort du à la différence verticale de température
B61: Paramètres | G61: Unité | H61: Minimum | I61: Maximum
B62: Différence verticale de la température de l'air entre la tête et les pieds (Dta,v) | G62: °C | H62: --- | I62: 8
B64: Inconfort du à l'asymétrie de température de rayonnement
B65: Paramètres | G65: Unité | H65: Minimum | I65: Maximum
B66: Asymétrie des températures dans le cas d'un plafond chaud (Dtpr) | G66: °C | H66: --- | I66: 23
B67: Asymétrie des températures dans le cas d'un mur froid (Dtpr) | G67: °C | H67: --- | I67: 15
B68: Asymétrie des températures dans le cas d'un plafond froid (Dtpr) | G68: °C | H68: --- | I68: 15
B69: Asymétrie des températures dans le cas d'un mur chaud (Dtpr) | G69: °C | H69: --- | I69: 35
B71: Plages de validité du modèle de contrainte thermique au froid et de détermination de l'isolement requis IREQ de la norme EN ISO 11079:2007
B73: Plages de validité du modèle de contrainte thermique froide IREQ
B74: Paramètres | G74: Unité | H74: Minimum | I74: Maximum
B75: Température de l'air (Ta) | G75: °C | H75: --- | I75: 10
B76: Vitesse d'air (va) | G76: m.s-1 | H76: 0,4 | I76: 18
B77: Isolement vestimentaire (Icl) | G77: clo | H77: 0,5 | I77: ---
B79: Note : La teneur en eau de l'air est très faible à basse température, en dessous de -5°C, retenir un taux d'hygrométrie relative de 50 %.
B80: Cette norme internationale expose des méthodes et des stratégies ayant pour but d'évaluer la contrainte thermique associée à l'exposition aux environnements froids. Ces méthodes s'appliquent aux expositions et aux types de travaux continus, intermittents et occasionnels, aussi bien en intérieur qu'à l'extérieur. Elles ne sont pas applicables aux effets spécifiques liés à certains phénomènes météorologiques (des précipitations, par exemple), qui sont évalués par d'autres méthodes.

Sheet Isolement Vestimentaire
D2: Indicateur d'Ambiance Thermique
D4: Outil d’évaluation des ambiances thermiques
B7: Isolement vestimentaire : Icl
B8: Pour mener la démarche d'évaluation, il est nécessaire d'avoir accès à des grandeurs mesurées et d'autres estimées : l'isolement vestimentaire en est une. Des valeurs repères relatives à cet isolement vestimentaire sont fournies ci-après.
B9: Le tableau suivant regroupe l'isolement vestimentaire de quelques tenues de travail ou d'usage courant ; pour plus de détails, se reporter à la norme NF EN 9920:2007
B11: Isolement thermique de différentes combinaisons vestimentaires types - Extrait de la norme NF EN 9920:2007
B13: Vêtement de travail | E13: Icl en clo | F13: Icl en m².K.W-1 | H13: Vêtement d'usage courant | K13: Icl en clo | L13: Icl en m².K.W-1
B14: Caleçon, combinaison, chaussettes, chaussures | E14: 0,7 | F14: 0,11 | H14: Slip, tee-shirt, short, chaussettes fines, sandales | K14: 0,3 | L14: 0,05
B15: Caleçon, chemise, combinaison, chaussettes, chaussures | E15: 0,8 | F15: 0,125 | H15: Caleçon, chemise à manches courtes, pantalon léger, chaussettes fines, chaussures | K15: 0,5 | L15: 0,08
B16: Caleçon, chemise, pantalon, blouse, chaussettes, chaussures | E16: 0,9 | F16: 0,14 | H16: Caleçon, chemise, pantalon léger, chaussettes, chaussures | K16: 0,6 | L16: 0,095
B17: Sous-vêtement à manche et jambe courtes, chemise, pantalon,veste, chaussettes, chaussures | E17: 1 | F17: 0,155 | H17: Slip, jupon, bas, robe, chaussures | K17: 0,7 | L17: 0,105
B18: Sous-vêtement à manche et jambe courtes, chemise, pantalon, combinaison, chaussettes, chaussures | E18: 1,1 | F18: 0,17 | H18: Sous-vêtement, survêtement de sport, chaussettes montantes, chaussures de sport | K18: 0,75 | L18: 0,115
B19: Sous-vêtements à manches et jambes courtes, veste isolante, chaussettes, chaussures | E19: 1,2 | F19: 0,185 | H19: Slip, jupon, chemise, jupe, chaussettes montantes épaisses, chaussures | K19: 0,8 | L19: 0,12
B20: Sous-vêtement à manche et jambe courtes, chemise, pantalon, veste, veste isolante, chaussettes, chaussures | E20: 1,25 | F20: 0,19 | H20: Caleçon, maillot de corps à manches courtes, chemise, pantalon, tricot, chaussettes, chaussures | K20: 0,95 | L20: 0,145
B21: Sous-vêtement à manches et jambes courtes, combinaison, veste isolante et pantalon, chaussettes, chaussures | E21: 1,4 | F21: 0,22 | H21: slip, chemise, pantalon, veste, chaussettes, chaussures | K21: 1 | L21: 0,155
B22: Sous-vêtement à manches et jambes courtes, chemise, pantalon, veste, veste et pantalon isolants, chaussettes, chaussures | E22: 1,55 | F22: 0,225 | H22: Slip, bas, chemise, jupe, gilet, veste, chaussettes, chaussures | K22: 1 | L22: 0,155
B23: Sous-vêtement à manche et jambe courtes, chemise, pantalon, veste, veste et salopette ouatinées, chaussettes, chaussures | E23: 1,85 | F23: 0,285 | H23: Sous-vêtements, maillot de corps à manches courtes, chemise, pantalon, veste, chaussettes, chaussures | K23: 1,1 | L23: 0,17
B24: Sous-vêtement à manche et jambe courtes, chemise, pantalon, veste, veste et salopette ouatinées, chaussettes, chaussures, casquette, gants | E24: 2 | F24: 0,31 | H24: Sous-vêtements, maillot de corps à manches courtes, chemise, pantalon, gilet, veste, chaussettes, chaussures | K24: 1,15 | L24: 0,18
B25: Sous-vêtement à manches et jambes longues, veste et pantalon isolants, sur-veste et sur-pantalon isolants, chaussettes, chaussures | E25: 2,2 | F25: 0,34 | H25: Sous-vêtements à manches et jambes longues, chemise, pantalon, tricot, veste, chaussettes, chaussures | K25: 1,3 | L25: 0,2
B26: Sous-vêtement à manches et jambes longues, veste et pantalon isolants, parka et salopette ouatinées, chaussettes, chaussures, casquette, gants | E26: 2,55 | F26: 0,395 | H26: Sous-vêtements à manches et jambes courtes, chemise, pantalon, gilet, veste, manteau, chaussettes, chaussures | K26: 1,5 | L26: 0,23

Sheet Métabolisme
U1: 3000
D2: Indicateur d'Ambiance Thermique
D4: Outil d’évaluation des ambiances thermiques
B7: Estimation du métabolisme énergétique
B8: L'estimation du métabolisme pour une période de travail donnée repose sur l'observation des différentes tâches de travail et les durées associées pendant l'acticité globale que l'on cherche à caractériser. C'est un paramètre à estimer avant d'entamer la démarche d'évaluation. La norme NF EN ISO 8996:2021 ainsi que la bibliographie scientifique prévoit un ensemble de situations pour lesquelles il est possible d'estimer le métabolisme.
B11: Données générales à renseigner
R12: 9 | S12: 37.07065582 | T12: 32.89270401
B13: A renseigner | D13: Résultats | F13: Valeurs calculées | R13: 10 | S13: 37.1031723 | T13: 39.18725586
J14: Bouton permettant d'effacer les résultats d'un calcul précédent
B16: Données relatives au salarié | R16: 16 | S16: 37.26478958 | T16: 85.37686157
B17: Genre | K17: --- | R17: 17 | S17: 37.28585815 | T17: 94.28728485
B18: Poids (prendre 75 kg par défaut si valeur non disponible) | K18: kg | R18: 18 | S18: 37.30537033 | T18: 103.4932938
B19: Taille (prendre 1,80 m par défaut si valeur non disponible) | K19: m
B20: Surface corporelle | K20: m² | L20: =IF(AND(L18="",L19=""),"",0.202*L18^0.425*L19^0.725) -> 
B22: Tâches réalisées pendant l'acticité de travail | R22: 16 | S22: 37.26478958 | T22: 85.37686157
B23: Choisir la ou les activité(s) de travail à caractériser parmi celles proposées :
B30: M0 : Métabolisme correspondant au repos | R30: 16 | S30: 37.26478958 | T30: 85.37686157
B31: Le métabolisme énergétique de repos du salarié dépend de son genre, homme ou femme, et de sa surface corporelle.
B32: Métabolisme M0 | K32: W | L32: =IF(L20="","",IF(L17="Homme",60*L20,55*L20)) -> 
B34: M1 : Métabolisme correspondant au déplacement sans port de charge | R34: 16 | S34: 37.26478958 | T34: 85.37686157
B35: Ce métabolisme dépend du poids du salarié, de sa vitesse de déplacement et de la pente du sol.
B36: Vitesse de déplacement | K36: km.h-1
B37: Pente du sol | K37: %
B38: Métabolisme M1 | K38: W | L38: =IF(L36="","",IF(L36<6,(1.2+0.57*L36+0.1*L36*L37)*L18,(1.2+1.14*L36+0.05*L36*L37)*L18)) -> 
B40: M2 : Métabolisme correspondant au port de charge pendant un déplacement | R40: 16 | S40: 37.26478958 | T40: 85.37686157
B41: Ce métabolisme dépend du poids du salarié, de sa vitesse de déplacement, de la pente du sol, du poids de la charge portée et de la façon dont elle est portée.
B42: Vitesse de déplacement | K42: km.h-1
B43: Pente du sol | K43: %
B44: Poids de la charge portée | K44: kg
B45: Façon de porter la charge | K45: ---
B46: Métabolisme M2 | K46: W | L46: =IF(L42="","",IF(L45="bras le long du corps",(69.8*0.01*(80+(2.43*L18+4.63*L44)*(L42/3.6)*(L42/3.6)+4.62*L44+0.379*(L44+L18)*L43*(L42/3.6))+69.8*0.024*L18),(69.8*0.01*(68+(2.54*L18+4.08*L44)*(L42/3.6)*(L42/3.6)+11.4*L44+0.379*(L44+L18)*L43*(L42/3.6))+69.8*0.024*L18))) -> 
B48: M3 : Métabolisme correspondant à la montée ou descente d'escalier ou échelle | R48: 16 | S48: 37.26478958 | T48: 85.37686157
B49: Ce métabolisme dépend du type de dispositif emprunté (escalier ou échelle), du nombre de marches ou de barreaux le caractérisant et du sens d'utilisation en montée ou en descente. Si le salarié porte une charge cela est pris en compte.
B50: Dispositif emprunté pour la MONTEE : escalier ou échelle | K50: ---
B51: Dénivelé | K51: m
B52: Temps | K52: seconde
B53: Nombre de marches ou barreaux par minutes | K53: nbre/min | L53: =IF(L52="","",IF(L50="Echelle",L51/L52/0.25*60,L51/L52/0.17*60)) -> 
B54: Poids de la charge portée | K54: kg
B56: Dispositif emprunté pour la DESCENTE : escalier ou échelle | K56: ---
B57: Dénivelé | K57: m
B58: Temps | K58: seconde
B59: Nombre de marches ou barreaux par minutes | K59: nbre/min | L59: =IF(L58="","",IF(L56="Echelle",L57/L58/0.25*60,L57/L58/0.17*60)) -> 
B60: Poids de la charge portée | K60: kg
L61: =(IF(L50="Escalier",(0.42+L53/10)*(L18+L54),(2.78+L53/4)*(L18+L54))+IF(L56="Escalier",(0.42+L59/28)*(L18+L60),(1.98+L59/23)*(L18+L60)))/2 -> 
B63: Métabolisme M3 | K63: W | L63: =IF(OR(L50="",L51="",L52="",L54="",L56="",L57="",L58="",L60=""),"",IF(L61<L32,L32,L61)) -> 
B65: M4 : Métabolisme correspondant au soulèvement ou abaissement d'une charge | R65: 16 | S65: 37.26478958 | T65: 85.37686157
B66: Ce métabolisme prend en compte le transport, le levage et l'abaissement de charges. Il dépend du type de position dans laquelle se trouve le salarié, de la hauteur de levage, de la fréquence de mouvement et du poids de la charge. Il se calcule par une augmentation de métabolisme DM par rapport au métabolisme de repos M0.
B67: Hauteur de levage | K67: m
B68: Taux de mouvement | K68: nbre/min
B69: Poids de la charge portée | K69: kg
B70: Choix de la situation correspondant à l'acitivité proposée parmi la liste ci-après : | K70: ---
B71: A | C71: Au repos et attente en portant une charge | K71: W | L71: =IF(L32="","",4.12*L69+L32) -> 
B72: B | C72: Soulever la charge en se penchant | K72: W | L72: =IF(L32="","",(0.09*L18+L69*L67)*L68+L32) -> 
B73: C | C73: Soulever la charge en levant les bras | K73: W | L73: =IF(L32="","",(0.02*L18+1.45*L69*L67)*L68+L32) -> 
B74: D | C74: Soulever la charge en s'accroupissant | K74: W | L74: =IF(L32="","",(0.14*L18+1.75*L67*L69)*L68+L32) -> 
B75: E | C75: Abaisser la charge en se penchant | K75: W | L75: =IF(L32="","",(0.08*L18+0.47*L69*L67+0.726)*L68+L32) -> 
B76: F | C76: Abaisser la charge en baissant les bras | K76: W | L76: =IF(L32="","",(0.03*L18+0.84*L69*L67)*L68+L32) -> 
B77: G | C77: Abaisser la charge en s'accroupissant | K77: W | L77: =IF(L32="","",(0.14*L18+0.49*L69*L67)*L68+L32) -> 
B79: Métabolisme M4 | K79: W | L79: =IF(OR(L67="",L68="",L69="",L70=""),"",IF(L70="A",L71,IF(L70="B",L72,IF(L70="C",L73,IF(L70="D",L74,IF(L70="E",L75,IF(L70="F",L76,L77))))))) -> 
B81: M5 : Métabolisme correspondant à l'observation des parties du corps sollicitées | R81: 16 | S81: 37.26478958 | T81: 85.37686157
B82: Ce métabolisme est estimé pour les situations de travail sans déplacement par observation des parties du corps sollicitées. La posture du salarié est prise en compte.
B83: Le tableau ci-dessous regroupe le métabolisme énergétique (en W) pour un sujet assis en fonction de l'intensité de travail et de la partie du corps impliquée
C85: Parties du corps | E85: Intensité de travail : légère | G85: Intensité de travail : modérée | I85: Intensité de travail : élevée
C86: Deux mains | E86: 125 | G86: 155 | I86: 170
C87: Un bras | E87: 160 | G87: 200 | I87: 235
C88: Deux bras | E88: 215 | G88: 250 | I88: 290
C89: Corps entier | E89: 325 | G89: 440 | I89: 605
B91: Reporter le métabolisme correspondant à la tâche de travail observée (tableau ci-dessus) | K91: W
B92: Préciser la posture du salarié | K92: ---
B93: Métabolisme M5 | K93: W | L93: =IF(L92="","",L91+IF(L92="Assis",0,IF(L92="Accroupi",20,IF(L92="Debout",25,35)))) -> 
B95: M6 : Métabolisme pour des activités très spécifiques | R95: 16 | S95: 37.26478958 | T95: 85.37686157
B96: Le tableau ci-après regroupe des métabolismes énergétiques (en W) pour des activités très spécifiques
B97: Pousser ou tirer un wagonnet à bascule, à 3,6 km/h, sur un terrain régulier et dur
B98: Force de poussée de 12 kg | K98: W | L98: 520
B99: Force de traction de 16 kg | K99: W | L99: 675
B100: Pousser une brouette sur un terrain régulier, à 4,5 km/h, roues à bandage en caoutchouc, charge de 100 kg | K100: W | L100: 415
B101: Limage de fer
B102: 42 coups par minute | K102: W | L102: 180
B103: 60 cous par minute | K103: W | L103: 340
B104: Travail au marteau (4,4 kg) à 2 mains et environ 15 coups par minute | K104: W | L104: 520
B105: Travail de menuiserie, sciage à la main | K105: W | L105: 395
B106: Sciage à la machine | K106: W | L106: 180
B107: Planage à la main | K107: W | L107: 540
B108: Pose de briques, 5 briques par minute | K108: W | L108: 305
B109: Visser | K109: W | L109: 180
B110: Creuser une tranchée | K110: W | L110: 520
B111: Activités domestiques
B112: Légères | K112: W | L112: =IF(L32="","",2.5*L32) -> 
B113: Modérées | K113: W | L113: =IF(L32="","",3.5*L32) -> 
B114: Intenses | K114: W | L114: =IF(L32="","",4.5*L32) -> 
B116: Métabolisme M6 : reporter la valeur à sélectionner dans le tableau ci-dessus | K116: W
B118: Détermination du métabolisme global
B119: Dans le tableau ci-dessous reporter les durées de chaque tâche de travail ; si une activité n'a pas été observée, mettre "0".
E121: M0 Repos - Sédentarité | F121: M1 Déplacement | G121: M2 Port de Charge | H121: M3 Monter - Descendre (escalier ou échelle) | I121: M4 soulever - abaisser une charge | J121: M5 Activité sans déplacement observée | K121: M6 Activités spécifiques
B122: Métabolisme en W | E122: =IF(L32="",0,L32) -> 0 | F122: =IF(L38="",0,L38) -> 0 | G122: =IF(L46="",0,L46) -> 0 | H122: =IF(L63="",0,L63) -> 0 | I122: =IF(L79="",0,L79) -> 0 | J122: =IF(L93="",0,L93) -> 0 | K122: =IF(L116="",0,L116) -> 0
B123: Temps associé en min
B125: Durée du poste de travail | K125: min | L125: =SUM(E123:K123) -> 0
B127: Métabolisme global | K127: W | L127: =IF(L125=0,0,(E122*E123+F122*F123+G122*G123+H122*H123+I122*I123+J122*J123+K122*K123)/L125) -> 0
B129: Métabolisme global ramené à la surface corporelle | K129: W.m-2 | L129: =IF(L20="",0,L127/L20) -> 0

Sheet Liste déroulante (hidden)
B2: Liste pour l'onglet METABOLISME | F2: Liste pour l'onglet ATP (CHAUD)
B4: Homme | D4: En montée | F4: Debout
B5: Femme | D5: En descente | F5: Assis
F6: Accroupi
B7: Escalier | D7: A | H7: EAU
B8: Echelle | D8: B | F8: Marche | G8: Sens marche | H8: Acclimaté
D9: C | F9: Oui | G9: Oui | H9: Oui
B10: Assis | D10: D | F10: Non | G10: Non | H10: Non
B11: Accroupi | D11: E
B12: Debout | D12: F
B13: Debout penché | D13: G
B17: Façon de porter la charge | F17: Liste pour l'onglet CONFORT
B19: bras le long du corps | F19: A
B20: contre le torse | F20: B
F21: C

Sheet Contrainte chaude
R1: Time (min) | S1: T. rectale (°C) | T1: Pertes hydriques (g) | U1: Limite pertes hydriques (g) si accès à l'eau | V1: Limite élévation de température rectale (°C)
D2: Indicateur d'Ambiance Thermique | U2: 3000 | V2: 37.8
U3: 3000 | V3: 37.8
D4: Outil d’évaluation des ambiances thermiques | U4: 3000 | V4: 37.8
U5: 3000 | V5: 37.8
U6: 3000 | V6: 37.8
B7: Calcul de l'astreinte thermique prévisible selon la norme NF EN ISO 7933:2023 | U7: 3000 | V7: 37.8
B8: La démarche ATP pour Astreinte Thermique Prévisible (ou PHS en anglais) est préconisée pour l'évaluation d'exposition à la chaleur. Elle est encadrée par la norme ISO 7933:2023 qui propose une méthode d'évaluation et d'interprétation de la contrainte thermique subie par un salarié. Cette contrainte repose sur deux valeurs d'astreinte que sont le débit sudoral et la température corporelle centrale que l'organisme humain met en œuvre en réaction aux conditions de travail à la chaleur. | U8: 3000 | V8: 37.8
U10: 3000 | V10: 37.8
B11: A renseigner | D11: Résultats | F11: Valeurs calculées | U11: 3000 | V11: 37.8
J12: Bouton permettant d'effacer les résultats d'un calcul précédent | U12: 3000 | V12: 37.8
U13: 3000 | V13: 37.8
U14: 3000 | V14: 37.8
U15: 3000 | V15: 37.8
U16: 3000 | V16: 37.8
B17: Données relatives au salarié | U17: 3000 | V17: 37.8
B18: Poids (prendre 75 kg par défaut si valeur non disponible) | K18: kg | U18: 3000 | V18: 37.8
B19: Taille (prendre 1,80 m par défaut si valeur non disponible) | K19: m | U19: 3000 | V19: 37.8
B20: Approvisionnement en eau | K20: --- | U20: 3000 | V20: 37.8
B21: Surface du corps | K21: m² | L21: =IF(OR(L18="",L19=""),"",0.202*L18^0.425*L19^0.725) ->  | U21: 3000 | V21: 37.8
B22: Chaleur massique du corps | K22: w/m².K | L22: =58.17*L18/L21 ->  | U22: 3000 | V22: 37.8
U23: 3000 | V23: 37.8
B24: L'outil offre la possibilité de découper la journée de travail en séquences de travail et de repos. Les séquences de travail ne doivent pas être inférieures à 120 minutes et celles de repos à 30 minutes. La durée totale doit être de 480 minutes soit 8 heures. | U24: 3000 | V24: 37.8
B25: Données relatives au poste de travail | U25: 3000 | V25: 37.8
B26: Choisir pour chaque séquence s'il s'agit de TRAVAIL ou de REPOS | U26: 3000 | V26: 37.8
B27: Durée | I27: min | U27: 3000 | V27: 37.8
B28: Température sèche de l'air (Ta) | I28: °C | U28: 3000 | V28: 37.8
B29: Vitesse de l'air (Va) | I29: m/s | U29: 3000 | V29: 37.8
B30: Pression saturation de vapeur d'eau | I30: kPa | J30: =EXP(23.3265-3802.7/(J28+273.18)-(472.68/(J28+273.18))^2)/1000 -> 0.6094021981 | U30: 3000 | V30: 37.8
B31: Humidité absolue | I31: g/kg air | J31: =(0.622*J30*1000)/(101325-J30*1000)*1000 -> 3.763549792 | U31: 3000 | V31: 37.8
B32: Humidité relative | I32: % | U32: 3000 | V32: 37.8
B33: Hygrométrie relative | I33: g/m3 | J33: =IF(OR(J28="",J29="",J32=""),"",J32/100*J31*1.2) ->  | K33: =IF(OR(K28="",K29="",K32=""),"",K32/100*K31*1.2) ->  | U33: 3000 | V33: 37.8
U34: 3000 | V34: 37.8
B35: Pression partielle de vapeur d'eau (Pa) | I35: kPa | J35: =IF(OR(J28="",J29="",J32=""),"",J32*0.6105*EXP(17.27*J28/(J28+237.3))/100) ->  | K35: =IF(OR(K28="",K29="",K32=""),"",K32*0.6105*EXP(17.27*K28/(K28+237.3))/100) ->  | U35: 3000 | V35: 37.8
B36: Température du globe noir | I36: °C | U36: 3000 | V36: 37.8
B37: Température moyenne de rayonnement (Tr) pour un globe noir mat de diamètre 15 cm | I37: °C | J37: =IF(OR(J28="",J29="",J36=""),"",((J36+273)^4+2.5*10^8*(J36-J28)*J29^0.6)^0.25-273) ->  | K37: =IF(OR(K28="",K29="",K36=""),"",((K36+273)^4+2.5*10^8*(K36-K28)*K29^0.6)^0.25-273) ->  | U37: 3000 | V37: 37.8
B38: Métabolisme (M) | I38: W/m² | U38: 3000 | V38: 37.8
B39: Puissance mécanique utile (prendre "0" par défaut si valeur non disponible) | I39: W/m² | U39: 3000 | V39: 37.8
B40: Posture (assis - accroupi - debout) | I40: --- | U40: 3000 | V40: 37.8
B41: Isolement thermique vestimentaire (Iclo) | I41: Clo | U41: 3000 | V41: 37.8
B42: Fraction du corps couverte par le vêtement réfléchissant (prendre "0,54" par défaut) | I42: --- | U42: 3000 | V42: 37.8
B43: Emissivité du vêtement réfléchissant (prendre "0,97" par défaut si valeur non disponible) | I43: --- | U43: 3000 | V43: 37.8
B44: Indice de perméabilité statique à l'humidité (prendre "0,38" par défaut si valeur non disponible) | I44: --- | U44: 3000 | V44: 37.8
B45: Le salarié se déplace-t-il en marchant ? (oui ou non) | I45: --- | U45: 3000 | V45: 37.8
B46: Si oui, indiquer sa vitesse de marche | I46: m/s | U46: 3000 | V46: 37.8
B47: Le sens de marche est-il défini ? (oui ou non) | I47: --- | U47: 3000 | V47: 37.8
B48: Si oui, indiquer l'angle entre le sens de marche et la direction du vent | I48: deg | U48: 3000 | V48: 37.8
B49: Le sujet est-il acclimaté ? (oui ou non) | I49: --- | U49: 3000 | V49: 37.8
U50: 3000 | V50: 37.8
J51: Bouton permettant de lancer les calculs avec les données saisies | U51: 3000 | V51: 37.8
B52: Résultats de la contrainte thermique selon la méthode ATP | U52: 3000 | V52: 37.8
J53: =J26 -> 0 | K53: =K26 -> 0 | L53: 0 | U53: 3000 | V53: 37.8
B54: Température rectale à la fin de la séquence de travail | I54: °C | U54: 3000 | V54: 37.8
B55: Pertes hydriques à la fin de la séquence de travail | I55: g | U55: 3000 | V55: 37.8
U56: 3000 | V56: 37.8
B57: Durée limite d'exposition vis-à-vis du stockage de chaleur | I57: min | U57: 3000 | V57: 37.8
B58: Durée limite d'exposition vis-à-vis de la perte hydrique | I58: min | U58: 3000 | V58: 37.8
B59: ð Détail relatif à la limite d'exposition | U59: 3000 | V59: 37.8
U60: 3000 | V60: 37.8
B61: Des limites de prévention, lègèrement plus contraingnantes que celles de la norme sont considérées ici comme valeurs d'astreinte: • une élévation maximale de la température centrale du corps de 0,8 °C et • une perte hydrique de 5% de la masse corporelle plafonnée à 3 000 g pour un salarié ayant accès à l’eau. | U61: 3000 | V61: 37.8
U62: 3000 | V62: 37.8
U63: 3000 | V63: 37.8
U64: 3000 | V64: 37.8
U65: 3000 | V65: 37.8
U66: 3000 | V66: 37.8
U67: 3000 | V67: 37.8
U68: 3000 | V68: 37.8
U69: 3000 | V69: 37.8
U70: 3000 | V70: 37.8
U71: 3000 | V71: 37.8
U72: 3000 | V72: 37.8
U73: 3000 | V73: 37.8
U74: 3000 | V74: 37.8
U75: 3000 | V75: 37.8
U76: 3000 | V76: 37.8
U77: 3000 | V77: 37.8
U78: 3000 | V78: 37.8
U79: 3000 | V79: 37.8
U80: 3000 | V80: 37.8
U81: 3000 | V81: 37.8
U82: 3000 | V82: 37.8
U83: 3000 | V83: 37.8
U84: 3000 | V84: 37.8
U85: 3000 | V85: 37.8
U86: 3000 | V86: 37.8
U87: 3000 | V87: 37.8
U88: 3000 | V88: 37.8
U89: 3000 | V89: 37.8
U90: 3000 | V90: 37.8
U91: 3000 | V91: 37.8
U92: 3000 | V92: 37.8
U93: 3000 | V93: 37.8
U94: 3000 | V94: 37.8
U95: 3000 | V95: 37.8
U96: 3000 | V96: 37.8
U97: 3000 | V97: 37.8
U98: 3000 | V98: 37.8
U99: 3000 | V99: 37.8
U100: 3000 | V100: 37.8
U101: 3000 | V101: 37.8
U102: 3000 | V102: 37.8
U103: 3000 | V103: 37.8
U104: 3000 | V104: 37.8
U105: 3000 | V105: 37.8
U106: 3000 | V106: 37.8
U107: 3000 | V107: 37.8
U108: 3000 | V108: 37.8
U109: 3000 | V109: 37.8
U110: 3000 | V110: 37.8
U111: 3000 | V111: 37.8
U112: 3000 | V112: 37.8
U113: 3000 | V113: 37.8
U114: 3000 | V114: 37.8
U115: 3000 | V115: 37.8
U116: 3000 | V116: 37.8
U117: 3000 | V117: 37.8
U118: 3000 | V118: 37.8
U119: 3000 | V119: 37.8
U120: 3000 | V120: 37.8
U121: 3000 | V121: 37.8
U122: 3000 | V122: 37.8
U123: 3000 | V123: 37.8
U124: 3000 | V124: 37.8
U125: 3000 | V125: 37.8
U126: 3000 | V126: 37.8
U127: 3000 | V127: 37.8
U128: 3000 | V128: 37.8
U129: 3000 | V129: 37.8
U130: 3000 | V130: 37.8
U131: 3000 | V131: 37.8
U132: 3000 | V132: 37.8
U133: 3000 | V133: 37.8
U134: 3000 | V134: 37.8
U135: 3000 | V135: 37.8
U136: 3000 | V136: 37.8
U137: 3000 | V137: 37.8
U138: 3000 | V138: 37.8
U139: 3000 | V139: 37.8
U140: 3000 | V140: 37.8
U141: 3000 | V141: 37.8
U142: 3000 | V142: 37.8
U143: 3000 | V143: 37.8
U144: 3000 | V144: 37.8
U145: 3000 | V145: 37.8
U146: 3000 | V146: 37.8
U147: 3000 | V147: 37.8
U148: 3000 | V148: 37.8
U149: 3000 | V149: 37.8
U150: 3000 | V150: 37.8
U151: 3000 | V151: 37.8
U152: 3000 | V152: 37.8
U153: 3000 | V153: 37.8
U154: 3000 | V154: 37.8
U155: 3000 | V155: 37.8
U156: 3000 | V156: 37.8
U157: 3000 | V157: 37.8
U158: 3000 | V158: 37.8
U159: 3000 | V159: 37.8
U160: 3000 | V160: 37.8
U161: 3000 | V161: 37.8
U162: 3000 | V162: 37.8
U163: 3000 | V163: 37.8
U164: 3000 | V164: 37.8
U165: 3000 | V165: 37.8
U166: 3000 | V166: 37.8
U167: 3000 | V167: 37.8
U168: 3000 | V168: 37.8
U169: 3000 | V169: 37.8
U170: 3000 | V170: 37.8
U171: 3000 | V171: 37.8
U172: 3000 | V172: 37.8
U173: 3000 | V173: 37.8
U174: 3000 | V174: 37.8
U175: 3000 | V175: 37.8
U176: 3000 | V176: 37.8
U177: 3000 | V177: 37.8
U178: 3000 | V178: 37.8
U179: 3000 | V179: 37.8
U180: 3000 | V180: 37.8
U181: 3000 | V181: 37.8
U182: 3000 | V182: 37.8
U183: 3000 | V183: 37.8
U184: 3000 | V184: 37.8
U185: 3000 | V185: 37.8
U186: 3000 | V186: 37.8
U187: 3000 | V187: 37.8
U188: 3000 | V188: 37.8
U189: 3000 | V189: 37.8
U190: 3000 | V190: 37.8
U191: 3000 | V191: 37.8
U192: 3000 | V192: 37.8
U193: 3000 | V193: 37.8
U194: 3000 | V194: 37.8
U195: 3000 | V195: 37.8
U196: 3000 | V196: 37.8
U197: 3000 | V197: 37.8
U198: 3000 | V198: 37.8
U199: 3000 | V199: 37.8
U200: 3000 | V200: 37.8
U201: 3000 | V201: 37.8
... 280 more rows

Sheet Confort global
D2: Indicateur d'Ambiance Thermique
D4: Outil d’évaluation des ambiances thermiques
B7: Calcul des indices de confort thermique global PMV et PPD selon la norme NF EN ISO 7730:2005
B8: Le confort thermique est la sensation de bien-être perçue lorsqu'on est exposé à une ambiance intérieure. Cette sensation thermique du corps peut être prédite en calculant deux indices : le vote moyen prévisible (PMV pour Predicted Mean Vote) et le pourcentage prévisible d’insatisfaits (PPD pour Predicted Percentage Dissatisfied). Ces indices renseignent sur l’inconfort thermique global, en estimant le pourcentage de personnes ayant trop chaud ou trop froid dans un environnement donné.
B11: À renseigner | D11: Résultats | F11: Valeurs calculées
J13: Bouton permettant d'effacer les résultats d'un calcul précédent
B14: Données au poste de travail
B15: Température de l'air (Ta) | K15: °C
B16: Vitesse de l'air (Va) | K16: m/s
B17: Pression de saturation de vapeur d'eau | K17: kPa | L17: =EXP(23.3265-3802.7/(L15+273.18)-(472.68/(L15+273.18))^2)/1000 -> 0.6094021981
B18: Humidité absolue | K18: g/kg air | L18: =(0.622*L17*1000)/(101325-L17*1000)*1000 -> 3.763549792
B19: Humidité relative | K19: %
B20: Hygrométrie de l'air | K20: g/m3 | L20: =IF(OR(L15="",L16="",L19=""),"",L19/100*L18*1.2) -> 
B22: Pression partielle de vapeur d'eau (Pa) | K22: kPa | L22: =IF(OR(L15="",L19=""),"",L19*0.6105*EXP(17.27*L15/(L15+237.3))/100) -> 
B23: Température du globe noir | K23: °C
B24: Température moyenne de rayonnement (Tr) pour un globe noir mat de diamètre 15 cm | K24: °C | L24: =IF(OR(L15="",L16="",L23=""),"",((L23+273)^4+2.5*10^8*(L23-L15)*L16^0.6)^0.25-273) -> 
B25: Métabolisme (M) | K25: W/m²
B26: Isolement thermique vestimentaire (Iclo) | K26: Clo
B27: Isolement thermique vestimentaire (Iclo) | K27: m².K/W | L27: =IF(L26="","",L26*0.155) -> 
B30: Choix de la catégorie d'ambiance thermique souhaitée | K30: --- | N30: A
B31: Information : L'INRS et les CARSAT recommandent d’assurer une ambiance thermique de catégorie B au minimum pour les locaux tertiaires (bureaux) et C au minimum pour les locaux industriels (ex : atelier). | N31: B
B32: PMV | K32: ---
B33: PPD | K33: %
B34: Température à la surface externe du vêtement | K34: °C
L35: 27.97596741
B36: Interprétation :
B37: Pour la catégorie choisie, le PMV ne devrait pas dépasser +/- | K37: --- | L37: =IF(L30="","",IF(L30="A","0.2",IF(L30="B","0.5","0.7"))) ->  | N37: B
B38: Pour la catégorie choisie, le PPD ou pourcentage de sujets insatisfaits ne devrait pas dépasser | K38: % | L38: =IF(L30="","",IF(L30="A",6,IF(L30="B",10,15))) ->  | N38: C

Sheet Confort local
D2: Indicateur d'Ambiance Thermique
D4: Outil d’évaluation des ambiances thermiques
B7: Calcul des indices d'inconfort thermique local selon la norme NF EN ISO 7730:2005
B8: Le refroidissement ou réchauffement local non désiré d'une partie du corps conduit à une situation d'inconfort thermique local. Une attention particulière doit y être apportée. Ces infonforts peuvent être dûs à la présence de courants d'air, à une différence trop élevée de température verticale entre le sol et le plafond, à la présence de sols chauds ou froids ou encore à la présence de surfaces rayonnantes. Ci-après, des outils d'appréciation de l'inconfort thermique local pour chacune de ces causes. A l'exception du taux de courant d'air DR, les résultats s'expriment en fonction d'un nombre de sujets insatisfaits minimum pour une catégorie d'ambiance souhaitée. Pour rappel, le tableau des catégories d'ambiance et seuils de confort issu de la NF EN 7730 :2005 est proposé ci-après.
B11: À renseigner | D11: Résultats | F11: Valeurs calculées
J13: Bouton permettant d'effacer les résultats d'un calcul précédent
C15: Indices de confort global | F15: Indices d'inconfort Local
B16: Catégorie | C16: PPD (%) | D16: PMV | F16: DR (%) | G16: PPD (%) | I16: PPD (%) | K16: PPD (%)
G17: du à une différence verticale de température d'air | I17: du à un sol chaud ou froid | K17: du à une asymétrie de la température de rayonnement
B18: A | C18: < 6 | D18: -0,2 < PMV < +0,2 | F18: < 10 | G18: < 3 | I18: < 10 | K18: < 5
B19: B | C19: < 10 | D19: -0,5 < PMV < +0,5 | F19: < 20 | G19: < 5 | I19: < 10 | K19: < 5
B20: C | C20: < 15 | D20: -0,7 < PMV < +0,7 | F20: < 30 | G20: < 10 | I20: < 15 | K20: < 10
B22: Courant d'air - Draught Rate (DR)
B23: Température locale de l'air (Ta,l) | K23: °C
B24: Vitesse moyenne locale de l'air (Va,l) | K24: m/s
B25: Ecart-type de la vitesse locale de l'air (sVa,l) | K25: m/s
B26: Intensité locale de turbulence | K26: % | L26: =IF(OR(L24="",L25=""),"",L25/L24*100) -> 
B27: Catégorie d'ambiance souhaitée | K27: ---
B28: DR à ne pas depasser | K28: % | L28: =IF(L27="","",IF(L27="A",10,IF(L27="B",20,30))) -> 
B29: Résultat : DR calculé (%) | I29: =IF(OR(L23="",L24="",L25=""),"",IF(L24<0.05,(34-L23)*(0.05-0.05)^0.62*(0.37*L24*L26+3.14),IF((34-L23)*(L24-0.05)^0.62*(0.37*L24*L26+3.14)>100,100,(34-L23)*(L24-0.05)^0.62*(0.37*L24*L26+3.14)))) -> 
B30: Interprétation : | D30: =IF(OR(L23="",L24="",L25=""),"",IF(I29>L28,"Attention, le taux de courant d'air est trop élevé pour cette catégorie d'ambiance","Le taux de courant d'air est dans la plage attendue pour cette catégorie d'ambiance thermique")) -> 
B32: Différence verticale de température d'air Dta,v
B33: Température au niveau de la tête (Ttête) | K33: °C
B34: Température au niveau des pieds (Tpieds) | K34: °C
B35: Ecart de température tête-pieds (Dta,v) | K35: °C | L35: =IF(OR(L33="",L34=""),"",L33-L34) -> 
B36: Catégorie d'ambiance souhaitée | K36: ---
B37: Pourcentage de personnes insatisfaites à ne pas dépasser | K37: % | L37: =IF(L36="","",IF(L36="A",3,IF(L36="B",5,10))) -> 
B38: Résultat : Pourcentage de personnes insatisfaites (%) | I38: =IF(OR(L33="",L34=""),"",IF(L35<8,100/(1+EXP(5.76-0.856*L35)),"Attention : différence verticale trop élevée modèle inapplicable")) -> 
B39: Interprétation : | D39: =IF(OR(L33="",L34=""),"",IF(I38>L37,"Attention, le nombre de personnes insatisfaites est trop élevé pour cette catégorie d'ambiance","Le nombre de personnes insatisfaites est dans la plage attendue pour cette catégorie d'ambiance thermique")) -> 
B41: Sols froids ou chauds
B42: Température du sol (Tf) | K42: °C
B43: Catégorie d'ambiance souhaitée | K43: ---
B44: Pourcentage de personnes insatisfaites à ne pas dépasser | K44: % | L44: =IF(OR(L42="",L43=""),"",IF(L43="A",10,IF(L43="B",10,15))) -> 
B45: Résultat : Pourcentage de personnes insatisfaites (%) | I45: =IF(OR(L42="",L43=""),"",100-94*EXP(-1.387+0.118*L42-0.0025*L42^2)) -> 
B46: Interprétation : | D46: =IF(L44="","",IF(I45>L44,"Attention, le nombre de personnes insatisfaites est trop élevé pour cette catégorie d'ambiance","Le nombre de personnes insatisfaites est dans la plage attendue pour cette catégorie d'ambiance thermique")) -> 
B48: Asymétrie de la température de rayonnement Dtp,r
B49: Cas du plafond
B50: Température sèche de l'air (Ta) | K50: °C
B51: Température du plafond (Tc) | K51: °C
B52: Asymétrie de température de rayonnement (Dtp,r) | K52: °C
B53: Qualification de la situation | I53: =IF(OR(L50="",L51="",L52=""),"",IF(L51<L50,"Plafond froid","Plafond chaud")) -> 
B54: Catégorie d'ambiance souhaitée | K54: ---
B55: Pourcentage de personnes insatisfaites à ne pas dépasser | K55: % | L55: =IF(L54="","",IF(L54="A",5,IF(L54="B",5,10))) -> 
B56: Résultat : Pourcentage de personnes insatisfaites (%) | I56: =IF(OR(L52="",L50="",L51=""),"",IF(I53="Plafond chaud",IF(L52<23,100/(1+EXP(2.84-0.174*L52))-5.5,"Attention : asymétrie de température hors plage de validité"),IF(L52<15,100/(1+EXP(9.93-0.5*L52)),"Attention : asymétrie de température hors plage de validité"))) -> 
B57: Interprétation : | D57: =IF(I56="","",IF(I56>L55,"Attention, le nombre de personnes insatisfaites est trop élevé pour cette catégorie d'ambiance","Le nombre de personnes insatisfaites est dans la plage attendue pour cette catégorie d'ambiance thermique")) -> 
B58: Cas d'un mur
B59: Température sèche de l'air (Ta) | K59: °C
B60: Température du mur considéré (Tw) | K60: °C
B61: Asymétrie de température de rayonnement (Dtp,r) | K61: °C
B62: Qualification de la situation | I62: =IF(OR(L59="",L60="",L61=""),"",IF(L60<L59,"Mur froid","Mur chaud")) -> 
B63: Catégorie d'ambiance souhaitée | K63: ---
B64: Pourcentage de personnes insatisfaites à ne pas dépasser | K64: % | L64: =IF(L63="","",IF(L63="A",5,IF(L63="B",5,10))) -> 
B65: Résultat : Pourcentage de personnes insatisfaites (%) | I65: =IF(OR(L59="",L60="",L61="",L63=""),"",IF(I62="Mur chaud",IF(L61<35,100/(1+EXP(3.72-0.052*L61))-3.5,"Attention : asymétrie de température hors plage de validité du modèle"),IF(L61<15,100/(1+EXP(6.61-0.345*L61)),"Attention : asymétrie de température hors plage de validité du modèle"))) -> 
B66: Interprétation : | D66: =IF(I65="","",IF(I65>L64,"Attention, le nombre de personnes insatisfaites est trop élevé pour cette catégiria d'ambiance","Le nombre de personnes insatisfaites est dans la plage attendue pour cette catégorie d'ambiance thermique")) -> 

Sheet Contrainte froide
D2: Indicateur d'Ambiance Thermique
D4: Outil d’évaluation des ambiances thermiques
B7: Calcul de l'isolement vestimentaire requis - contrainte froide selon la norme NF EN ISO 11079:2007
B8: Les basses températures, associées ou non à la présence de vent, peuvent mettre en danger l'équilibre thermique du corps humain. En effet, le corps possède peu de ressources internes pour lutter contre une perte excessive de chaleur. En choisissant correctement les vêtements, il est souvent possible de contrôler et réguler les pertes thermiques corporelles afin de compenser la variation du climat environnant, qu’il soit intérieur ou extérieur. Aussi, la méthode d’évaluation des risques utilisée en contrainte froide est basée sur l'évaluation de l'isolement des vêtements requis (IREQ) pour maintenir le bilan thermique du corps à l'équilibre. Cette méthode d’évaluation des risques est encadrée par la norme NF EN ISO 11079:2007. À l'issue d'une exposition engendrant un refroidissement du corps, une période de récupération destinée à rétablir l'équilibre thermique normal du corps doit être prévue. Le calcul du temps de récupération est à suivre après celui de l'indice IREQ.
B10: À renseigner | D10: Résultats | F10: Valeurs calculées
B12: Isolement thermique requis du vêtement : IREQ | I12: Bouton permettant d'effacer les résultats d'un calcul précédent
B14: Données relatives au poste de travail
B15: Température sèche de l'air (Ta) | J15: °C
B16: Vitesse de l'air (Va) | J16: m/s
B17: Pression de saturation de vapeur d'eau | J17: kPa | K17: =EXP(23.3265-3802.7/(K15+273.18)-(472.68/(K15+273.18))^2)/1000 -> 0.6094021981
B18: Humidité absolue | J18: g/kg air | K18: =(0.622*K17*1000)/(101325-K17*1000)*1000 -> 3.763549792
B19: Humidité relative | J19: %
B20: Hygrométrie relative | J20: g/m3 | K20: =IF(OR(K15="",K16="",K19=""),"",K19/100*K18*1.2) -> 
B22: Pression partielle de vapeur d'eau (Pa) | J22: kPa | K22: =IF(OR(K15="",K19=""),"",K19*0.6105*EXP(17.27*K15/(K15+237.3))/100) -> 
B23: Température du globe noir | J23: °C
B24: Température moyenne de rayonnement (Tr) pour un globe noir mât de diamètre 15 cm | J24: °C | K24: =IF(OR(K23="",K15="",K16=""),"",((K23+273)^4+2.5*10^8*(K23-K15)*K16^0.6)^0.25-273) -> 
B25: Métabolisme (M) | J25: W/m²
B27: Isolement thermique vestimentaire (Iclo) | J27: Clo
B28: Isolement thermique vestimentaire (Iclo) | J28: m².K/W | K28: =IF(K27="","",K27*0.155) -> 
B29: Travail extérieur | J29: W/m²
B30: Vitesse de marche (vitesse de déplacement de la personne) | J30: m/s
B31: Perméabilité à l'air du vêtement (faible < 5, moyenne 50, élevée > 100 l/m²s) | J31: l/m².s
K33: Bouton permettant de lancer les calculs avec les données saisies
B34: Résultats de la contrainte thermique froide selon la méthode IREQ
B35: Icl,r Isolement thermique vestimentaire résultant | J35: clo
B36: IREQ "minimal" définit l'isolement thermique vestimentaire minimal requis pour maintenir l'équilibre thermique du corps à un niveau hyponormal de la température moyenne du corps. La valeur IREQ minimale représente donc un certain refroidissement corporel, en particulier des parties périphériques du corps. En cas d'exposition prolongée, le refroidissement des extrémités peut devenir un facteur limitant pour la durée d'exposition | J36: clo
B37: IREQ "neutre" définit l'isolement thermique vestimentaire requis pour créer les conditions de neutralité thermique, c'est-à-dire pour maintenir un équilibre thermique à un niveau normal de température moyenne du corps. Ce niveau représente l'absence de refroidissement ou un refroidissement minimal du corps humain. | J37: clo
B38: Icl "minimal" | J38: clo
B39: Icl "neutre" | J39: clo
B40: Durée limite basée sur l'IREQ "minimal" | J40: heure
B41: Durée limite basée sur l'IREQ "neutre" | J41: heure
B43: Interprétation : | D43: =IF(OR(K37="",K36="",K35=""),"",IF(K35<K36,"Isolement vestimentaire insuffisant, augmenter l'isolement thermique du vêtement ou limiter la durée d'exposition",IF(K35<=K37,"Contraintes thermiques faibles mais nécessitant une limitation de l'exposition et une évaluation des effets du refroidissement local","Isolement thermique suffisant voire trop important pouvant générer une sudation excessive"))) -> 
B44: Durée limite d'exposition vis à vis du froid | J44: heures | K44: =IF(K41="","",K41) -> 
B46: Temps de récupération
B48: À l'issue d'une exposition engendrant un refroidissement du corps, une période de récupération destinée à rétablir l'équilibre thermique normal du corps doit être prévue.
B49: Données relatives à la salle de repos
B50: Température sèche de l'air (Ta) | J50: °C
B51: Vitesse de l'air (Va) | J51: m/s
B52: Pression de saturation de vapeur d'eau | J52: kPa | K52: =EXP(23.3265-3802.7/(K50+273.18)-(472.68/(K50+273.18))^2)/1000 -> 0.6094021981
B53: Humidité absolue | J53: g/kg air | K53: =(0.622*K52*1000)/(101325-K52*1000)*1000 -> 3.763549792
B54: Hygrométrie relative | J54: %
B55: Hygrométrie de l'air | J55: g/m3 | K55: =IF(OR(K50="",K52="",K54=""),"",K54/100*K53*1.2) -> 
B57: Pression partielle de vapeur d'eau (Pa) | J57: kPa | K57: =IF(OR(K50="",K54=""),"",K54*0.6105*EXP(17.27*K50/(K50+237.3))/100) -> 
B58: Température du globe noir | J58: °C
B59: Température moyenne de rayonnement (Tr) pour un globe noir mât de diamètre 15 cm | J59: °C | K59: =IF(OR(K50="",K51="",K58=""),"",((K58+273)^4+2.5*10^8*(K58-K50)*K51^0.6)^0.25-273) -> 
B60: Métabolisme (M) | J60: W/m²
B62: Isolement thermique vestimentaire (Iclo) | J62: Clo
B63: Isolement thermique vestimentaire (Iclo) | J63: m².K/W | K63: =IF(K62="","",K62*0.155) -> 
B64: Travail extérieur | J64: W/m²
B65: Vitesse de marche (vitesse de déplacement de la personne) | J65: m/s
B66: Perméabilité à l'air du vêtement (faible < 5, moyenne 50, élevée > 100 l/m²s) | J66: l/m².s
B67: Posture (Assis / Debout / Accroupi) | J67: /
B69: Résultats du temps de récupération
B70: Temps de récupération | J70: heures

Sheet Indice éolien
D2: Indicateur d'Ambiance Thermique
D4: Outil d’évaluation des ambiances thermiques
B7: Calcul de l'indice de refroidissement éolien
B8: Pour les travaux en extérieur, le risque est aggravé en cas d’exposition au vent. La sensation de refroidissement est causée par l’effet combiné de la température et du vent. L’indice de refroidissement éolien, établi par les météorologues canadiens, exprime une température de refroidissement par le vent TW en °C . Il donne donc une température équivalente ressentie par l’organisme en fonction de la vitesse du vent, pour des individus adultes portant des vêtements d’hiver ; cet indice est associé à une classe de risques encourus par le corps.
B10: À renseigner | D10: Résultats | F10: Valeurs calculées
J12: Bouton permettant d'effacer les résultats d'un calcul précédent
B13: Données climatiques extérieures
B14: Température sèche de l'air (Ta) | K14: °C
B15: Vitesse de l'air à 10 m du sol (Va) La vitesse de l'air à 10 m du sol équivaut à celle mesurée au niveau du sol multipliée par un facteur 1,5 | K15: m/s
B16: Vitesse de l'air | K16: km/h | L16: =IF(L15="","",L15*3.6) -> 
B17: Température de refroidissement par le vent (Tw) | K17: °C | L17: =IF(OR(L14="",L15=""),"",13.12+0.6215*L14-11.37*L16^0.16+0.3965*L14*L16^0.16) -> 
B19: Tableau de classes de risque associées à Tw
B20: Classes de risque | C20: Tw (°C) | D20: Effets
B21: 0 | C21: 0 à -9 | D21: Risque faible - Froid gênant
B22: 1 | C22: -10 à -24 | D22: Risque modéré - Risque d'hypothermie et d'engelure si la personne se trouve à l'extérieur pendant de longues périodes sans protection adéquate
B23: 2 | C23: -25 à -34 | D23: Risque élevé - Risque d'engelures (en 10 à 30 min) et d'hypothermie
B24: 3 | C24: -34 à -59 | D24: Risque très élevé à grave - Risque d'engelures (en 2 à 10 min) et d'hypothermie Des vents soutenus de plus de 50 km/h peuvent causer des gelures plus rapidement qu'indiqué
B25: 4 | C25: < -60 | D25: Risque extrême - risque de gelure profonde en moins de 2 minutes et d'hypothermie
B27: Information : Le tableau ci-après reprend différentes valeurs de l'indice éolien en fonction de la température de l'air extérieur et de la vitesse de vent.
C29: Tableau de valeurs de la température de refroidissement par le vent Tw
B30: Vitesse du vent en km/h 6 | C30: Température de l'air extérieur en °C 6
C31: 0 | D31: -5 | E31: -10 | F31: -15 | G31: -20 | H31: -25 | I31: -30 | J31: -35 | K31: -40 | L31: -45 | M31: -50
B32: 5 | C32: =13.12+0.6215*$C$31-11.37*B32^0.16+0.3965*$C$31*B32^0.16 -> -1.589423955 | D32: =13.12+0.6215*$D$31-11.37*B32^0.16+0.3965*$D$31*B32^0.16 -> -7.261693787 | E32: =13.12+0.6215*$E$31-11.37*B32^0.16+0.3965*$E$31*B32^0.16 -> -12.93396362 | F32: =13.12+0.6215*$F$31-11.37*B32^0.16+0.3965*$F$31*B32^0.16 -> -18.60623345 | G32: =13.12+0.6215*$G$31-11.37*B32^0.16+0.3965*$G$31*B32^0.16 -> -24.27850328 | H32: =13.12+0.6215*$H$31-11.37*B32^0.16+0.3965*$H$31*B32^0.16 -> -29.95077312 | I32: =13.12+0.6215*$I$31-11.37*B32^0.16+0.3965*$I$31*B32^0.16 -> -35.62304295 | J32: =13.12+0.6215*$J$31-11.37*B32^0.16+0.3965*$J$31*B32^0.16 -> -41.29531278 | K32: =13.12+0.6215*$K$31-11.37*B32^0.16+0.3965*$K$31*B32^0.16 -> -46.96758261 | L32: =13.12+0.6215*$L$31-11.37*B32^0.16+0.3965*$L$31*B32^0.16 -> -52.63985244 | M32: =13.12+0.6215*$M$31-11.37*B32^0.16+0.3965*$M$31*B32^0.16 -> -58.31212228
B33: 10 | C33: =13.12+0.6215*$C$31-11.37*B33^0.16+0.3965*$C$31*B33^0.16 -> -3.314650193 | D33: -9.287734539 | E33: =13.12+0.6215*$E$31-11.37*B33^0.16+0.3965*$E$31*B33^0.16 -> -15.26081888 | F33: =13.12+0.6215*$F$31-11.37*B33^0.16+0.3965*$F$31*B33^0.16 -> -21.23390323 | G33: =13.12+0.6215*$G$31-11.37*B33^0.16+0.3965*$G$31*B33^0.16 -> -27.20698758 | H33: =13.12+0.6215*$H$31-11.37*B33^0.16+0.3965*$H$31*B33^0.16 -> -33.18007192 | I33: =13.12+0.6215*$I$31-11.37*B33^0.16+0.3965*$I$31*B33^0.16 -> -39.15315627 | J33: =13.12+0.6215*$J$31-11.37*B33^0.16+0.3965*$J$31*B33^0.16 -> -45.12624061 | K33: =13.12+0.6215*$K$31-11.37*B33^0.16+0.3965*$K$31*B33^0.16 -> -51.09932496 | L33: =13.12+0.6215*$L$31-11.37*B33^0.16+0.3965*$L$31*B33^0.16 -> -57.0724093 | M33: =13.12+0.6215*$M$31-11.37*B33^0.16+0.3965*$M$31*B33^0.16 -> -63.04549365
B34: 15 | C34: -4.416182887 | D34: -10.58133307 | E34: -16.74648325 | F34: -22.91163343 | G34: -29.07678362 | H34: -35.2419338 | I34: -41.40708398 | J34: -47.57223416 | K34: -53.73738435 | L34: -59.90253453 | M34: -66.06768471
B35: 20 | C35: -5.24222328 | D35: -11.55140381 | E35: -17.86058434 | F35: -24.16976488 | G35: -30.47894541 | H35: -36.78812594 | I35: -43.09730647 | J35: -49.40648701 | K35: -55.71566754 | L35: -62.02484807 | M35: -68.3340286
B36: 25 | C36: -5.909652866 | D36: -12.33520799 | E36: -18.76076312 | F36: -25.18631825 | G36: -31.61187338 | H36: -38.03742851 | I36: -44.46298364 | J36: -50.88853876 | K36: -57.31409389 | L36: -63.73964902 | M36: -70.16520415
B37: 30 | C37: -6.47295159 | D37: -12.99672481 | E37: -19.52049803 | F37: -26.04427125 | G37: -32.56804448 | H37: -39.0918177 | I37: -45.61559092 | J37: -52.13936414 | K37: -58.66313736 | L37: -65.18691058 | M37: -71.71068381
B38: 35 | C38: -6.962202953 | D38: -13.57128319 | E38: -20.18036344 | F38: -26.78944368 | G38: -33.39852392 | H38: -40.00760416 | I38: -46.61668441 | J38: -53.22576465 | K38: -59.83484489 | L38: -66.44392513 | M38: -73.05300537
B39: 40 | C39: -7.395875897 | D39: -14.08057238 | E39: -20.76526885 | F39: -27.44996533 | G39: -34.13466181 | H39: -40.81935829 | I39: -47.50405477 | J39: -54.18875125 | K39: -60.87344773 | L39: -67.55814421 | M39: -74.24284069
B40: 45 | C40: -7.786169486 | D40: -14.53891848 | E40: -21.29166746 | F40: -28.04441645 | G40: -34.79716544 | H40: -41.54991443 | I40: -48.30266342 | J40: -55.05541241 | K40: -61.8081614 | L40: -68.56091039 | M40: -75.31365938
B41: 50 | C41: -8.141586389 | D41: -14.95630671 | E41: -21.77102703 | F41: -28.58574734 | G41: -35.40046766 | H41: -42.21518798 | I41: -49.0299083 | J41: -55.84462862 | K41: -62.65934893 | L41: -69.47406925 | M41: -76.28878957
B42: 55 | C42: -8.468302507 | D42: -15.33998982 | E42: -22.21167713 | F42: -29.08336444 | G42: -35.95505175 | H42: -42.82673906 | I42: -49.69842637 | J42: -56.57011368 | K42: -63.44180099 | L42: -70.3134883 | M42: -77.18517561
B43: 60 | C43: -8.770952809 | D43: -15.69541094 | E43: -22.61986907 | F43: -29.5443272 | G43: -36.46878533 | H43: -43.39324346 | I43: -50.31770159 | J43: -57.24215972 | K43: -64.16661785 | L43: -71.09107598 | M43: -78.01553411
B44: 65 | C44: -9.053109501 | D44: -16.02676514 | E44: -23.00042077 | F44: -29.97407641 | G44: -36.94773205 | H44: -43.92138768 | I44: -50.89504332 | J44: -57.86869896 | K44: -64.84235459 | L44: -71.81601023 | M44: -78.78966587
B45: 70 | C45: -9.317587063 | D45: -16.33735763 | E45: -23.3571282 | F45: -30.37689877 | G45: -37.39666933 | H45: -44.4164399 | I45: -51.43621047 | J45: -58.45598104 | K45: -65.4757516 | L45: -72.49552217 | M45: -79.51529274
B46: 75 | C46: -9.566644559 | D46: -16.62984138 | E46: -23.6930382 | F46: -30.75623502 | G46: -37.81943184 | H46: -44.88262866 | I46: -51.94582548 | J46: -59.0090223 | K46: -66.07221912 | L46: -73.13541594 | M46: -80.19861275
B47: 80 | C47: -9.802124266 | D47: -16.90637988 | E47: -24.0106355 | F47: -31.11489111 | G47: -38.21914673 | H47: -45.32340235 | I47: -52.42765796 | J47: -59.53191358 | K47: -66.6361692 | L47: -73.74042481 | M47: -80.84468043
B48: 85 | C48: -10.02554934 | D48: -17.16876188 | E48: -24.31197441 | F48: -31.45518695 | G48: -38.59839949 | H48: -45.74161203 | I48: -52.88482457 | J48: -60.02803711 | K48: -67.17124964 | L48: -74.31446218 | M48: -81.45767472
B49: 90 | C49: -10.23819427 | D49: -17.41848408 | E49: -24.59877389 | F49: -31.7790637 | G49: -38.95935352 | H49: -46.13964333 | I49: -53.31993314 | J49: -60.50022295 | K49: -67.68051276 | L49: -74.86080257 | M49: -82.04109238
